[Event "*** Titled Tuesday Blitz"]
[Site "Chess.com"]
[Date "2019.05.07"]
[Round "2"]
[White "Caisachess"]
[Black "Cruel_Yaro"]
[Result "0-1"]
[WhiteElo "2350"]
[BlackElo "2749"]
[TimeControl "180+2"]
[EndTime "13:23:38 PDT"]
[Termination "Cruel_Yaro won by checkmate"]

1. e4 {[%clk 0:03:01.9]} 1... c6 {[%clk 0:02:16.2]} 2. d4 {[%clk 0:03:00.8]}
2... d5 {[%clk 0:02:16.9]} 3. exd5 {[%clk 0:03:01.3]} 3... cxd5 {[%clk
0:02:17.8]} 4. c4 {[%clk 0:03:02.5]} 4... e6 {[%clk 0:02:17.8]} 5. Nc3 {[%clk
0:03:03]} 5... Nf6 {[%clk 0:02:19.2]} 6. Nf3 {[%clk 0:03:04.5]} 6... Be7 {[%clk
0:02:20.1]} 7. Bd3 {[%clk 0:03:04.1]} 7... O-O {[%clk 0:02:21.2]} 8. O-O {[%clk
0:03:04.8]} 8... b6 {[%clk 0:02:21.9]} 9. Re1 {[%clk 0:03:02.1]} 9... dxc4
{[%clk 0:02:22.4]} 10. Bxc4 {[%clk 0:03:02.9]} 10... Bb7 {[%clk 0:02:23.8]} 11.
Ne5 {[%clk 0:03:01.7]} 11... Nc6 {[%clk 0:02:22.9]} 12. Be3 {[%clk 0:03:01.1]}
12... Na5 {[%clk 0:02:18.9]} 13. Bd3 {[%clk 0:03:00.7]} 13... Rc8 {[%clk
0:02:19.5]} 14. Qe2 {[%clk 0:02:54]} 14... Nd5 {[%clk 0:02:19.3]} 15. Qh5 {[%clk
0:02:50.1]} 15... g6 {[%clk 0:02:19.8]} 16. Nxg6 {[%clk 0:02:49.5]} 16... hxg6
{[%clk 0:02:18.7]} 17. Bxg6 {[%clk 0:02:49.4]} 17... Nf6 {[%clk 0:02:17.4]} 18.
Qg5 {[%clk 0:02:34.3]} 18... fxg6 {[%clk 0:02:13.1]} 19. Qxg6+ {[%clk
0:02:35.2]} 19... Kh8 {[%clk 0:02:14.4]} 20. Qh6+ {[%clk 0:02:32.4]} 20... Nh7
{[%clk 0:02:14.9]} 21. Qxe6 {[%clk 0:02:33.1]} 21... Rxc3 {[%clk 0:02:05.5]} 22.
bxc3 {[%clk 0:02:30.9]} 22... Bd5 {[%clk 0:02:06.7]} 23. Qh6 {[%clk 0:02:17.7]}
23... Rg8 {[%clk 0:02:06.3]} 24. g3 {[%clk 0:02:11.4]} 24... Bf8 {[%clk
0:02:06.8]} 25. Qh5 {[%clk 0:02:04.4]} 25... Nc4 {[%clk 0:02:07.2]} 26. Bf4
{[%clk 0:02:01.1]} 26... Ba8 {[%clk 0:02:04.8]} 27. Be5+ {[%clk 0:01:40.8]}
27... Nxe5 {[%clk 0:02:05.3]} 28. Qxe5+ {[%clk 0:01:42.3]} 28... Bg7 {[%clk
0:02:05.7]} 29. Qh5 {[%clk 0:01:38.4]} 29... Qc8 {[%clk 0:02:06.5]} 30. d5
{[%clk 0:01:26.2]} 30... Qxc3 {[%clk 0:02:03.4]} 31. Rad1 {[%clk 0:01:25.7]}
31... Bd4 {[%clk 0:01:59.7]} 32. Re8 {[%clk 0:01:20.2]} 32... Bxd5 {[%clk
0:01:55.2]} 33. Qxd5 {[%clk 0:01:11.5]} 33... Rxe8 {[%clk 0:01:55.4]} 34. Qxd4+
{[%clk 0:01:12.3]} 34... Qxd4 {[%clk 0:01:55.8]} 35. Rxd4 {[%clk 0:01:14.2]}
35... Nf6 {[%clk 0:01:55.8]} 36. Rd6 {[%clk 0:01:12.5]} 36... Kg7 {[%clk
0:01:56.2]} 37. Kg2 {[%clk 0:01:13.9]} 37... Re2 {[%clk 0:01:56.5]} 38. a3
{[%clk 0:01:09.2]} 38... Rxf2+ {[%clk 0:01:57.1]} 39. Kh3 {[%clk 0:01:06.6]}
39... Rf3 {[%clk 0:01:57.6]} 40. a4 {[%clk 0:01:03.6]} 40... Ra3 {[%clk
0:01:58.2]} 41. Rd4 {[%clk 0:01:03.9]} 41... a5 {[%clk 0:01:57.6]} 42. Kh4
{[%clk 0:01:01.5]} 42... Kg6 {[%clk 0:01:58.6]} 43. h3 {[%clk 0:01:01.8]} 43...
Rb3 {[%clk 0:01:56.9]} 44. g4 {[%clk 0:01:00.3]} 44... Rb4 {[%clk 0:01:57.3]}
45. Rd6 {[%clk 0:01:01.5]} 45... Rxa4 {[%clk 0:01:58.6]} 46. Rxb6 {[%clk
0:01:02.3]} 46... Rb4 {[%clk 0:01:59.8]} 47. Ra6 {[%clk 0:01:03]} 47... a4
{[%clk 0:02:00.8]} 48. Kg3 {[%clk 0:01:04.5]} 48... Kf7 {[%clk 0:02:01.6]} 49.
g5 {[%clk 0:01:02.1]} 49... Ne4+ {[%clk 0:02:01.7]} 50. Kg2 {[%clk 0:00:42.6]}
50... Nxg5 {[%clk 0:02:00.8]} 51. Ra7+ {[%clk 0:00:43.7]} 51... Kg6 {[%clk
0:02:01.4]} 52. Ra6+ {[%clk 0:00:45]} 52... Kh5 {[%clk 0:02:02.3]} 53. Ra5
{[%clk 0:00:46.2]} 53... Kh4 {[%clk 0:02:03.1]} 54. Ra8 {[%clk 0:00:40.7]} 54...
Rb2+ {[%clk 0:02:03.8]} 55. Kf1 {[%clk 0:00:41.3]} 55... Ra2 {[%clk 0:02:05.2]}
56. Rh8+ {[%clk 0:00:41.4]} 56... Kg3 {[%clk 0:02:06.1]} 57. h4 {[%clk
0:00:42.5]} 57... Nf3 {[%clk 0:02:05.2]} 58. h5 {[%clk 0:00:42.3]} 58... Rf2#
{[%clk 0:02:05.6]} 0-1

[Event "*** Titled Tuesday Blitz"]
[Site "Chess.com"]
[Date "2019.05.07"]
[Round "2"]
[White "Korchmar_Vasiliy"]
[Black "Witik"]
[Result "1-0"]
[WhiteElo "2820"]
[BlackElo "2608"]
[TimeControl "180+2"]
[EndTime "13:23:44 PDT"]
[Termination "Korchmar_Vasiliy won on time"]

1. d4 {[%clk 0:03:00.9]} 1... d5 {[%clk 0:02:58.7]} 2. Nf3 {[%clk 0:03:00.2]}
2... e6 {[%clk 0:02:59.6]} 3. c4 {[%clk 0:03:00.8]} 3... c6 {[%clk 0:03:00.7]}
4. g3 {[%clk 0:03:01.2]} 4... Bd6 {[%clk 0:03:01]} 5. Bg2 {[%clk 0:03:01.7]}
5... f5 {[%clk 0:03:02]} 6. O-O {[%clk 0:03:02.4]} 6... Nf6 {[%clk 0:03:02.7]}
7. Nc3 {[%clk 0:03:04]} 7... O-O {[%clk 0:03:02.7]} 8. Qc2 {[%clk 0:03:05.5]}
8... Qe8 {[%clk 0:02:35.7]} 9. c5 {[%clk 0:02:54]} 9... Be7 {[%clk 0:02:26.5]}
10. b4 {[%clk 0:02:49.6]} 10... b6 {[%clk 0:02:20.2]} 11. Bf4 {[%clk 0:02:43.5]}
11... Ne4 {[%clk 0:01:58.7]} 12. a4 {[%clk 0:02:35.7]} 12... Nd7 {[%clk
0:01:43]} 13. Nxe4 {[%clk 0:01:49.3]} 13... fxe4 {[%clk 0:01:40.7]} 14. Ne5
{[%clk 0:01:50.6]} 14... Nxe5 {[%clk 0:01:40.8]} 15. Bxe5 {[%clk 0:01:52.5]}
15... bxc5 {[%clk 0:01:41.4]} 16. bxc5 {[%clk 0:01:37.6]} 16... Ba6 {[%clk
0:01:38.5]} 17. f3 {[%clk 0:01:30.3]} 17... Qh5 {[%clk 0:01:29]} 18. g4 {[%clk
0:01:14.5]} 18... Qg6 {[%clk 0:01:28.8]} 19. h3 {[%clk 0:01:03.4]} 19... h5
{[%clk 0:01:27.9]} 20. gxh5 {[%clk 0:00:42.3]} 20... Qxh5 {[%clk 0:01:25.6]} 21.
fxe4 {[%clk 0:00:43.5]} 21... Bxe2 {[%clk 0:01:19.1]} 22. Rxf8+ {[%clk
0:00:29.9]} 22... Rxf8 {[%clk 0:01:19.7]} 23. exd5 {[%clk 0:00:30.2]} 23... exd5
{[%clk 0:01:20.9]} 24. Re1 {[%clk 0:00:28.4]} 24... Bc4 {[%clk 0:01:13.7]} 25.
Bxg7 {[%clk 0:00:27.2]} 25... Rf7 {[%clk 0:01:04.8]} 26. Be5 {[%clk 0:00:27]}
26... Qh4 {[%clk 0:00:52.6]} 27. Qg6+ {[%clk 0:00:19.4]} 27... Kf8 {[%clk
0:00:53.2]} 28. Rb1 {[%clk 0:00:20.6]} 28... Qf2+ {[%clk 0:00:13]} 29. Kh1
{[%clk 0:00:22]} 29... Ke8 {[%clk 0:00:14.2]} 30. Qe6 {[%clk 0:00:17.7]} 1-0

[Event "*** Titled Tuesday Blitz"]
[Site "Chess.com"]
[Date "2019.05.07"]
[Round "2"]
[White "Iball95"]
[Black "Msb2"]
[Result "1-0"]
[WhiteElo "2622"]
[BlackElo "2952"]
[TimeControl "180+2"]
[EndTime "13:23:47 PDT"]
[Termination "Iball95 won by checkmate"]

1. e4 {[%clk 0:03:01.9]} 1... e6 {[%clk 0:03:01]} 2. d4 {[%clk 0:03:00.4]} 2...
d5 {[%clk 0:03:02.9]} 3. Nd2 {[%clk 0:03:01.5]} 3... Be7 {[%clk 0:03:03.2]} 4.
Ngf3 {[%clk 0:03:01.8]} 4... Nf6 {[%clk 0:03:04.5]} 5. Bd3 {[%clk 0:03:02]} 5...
c5 {[%clk 0:03:05.2]} 6. dxc5 {[%clk 0:03:02.3]} 6... dxe4 {[%clk 0:03:06]} 7.
Nxe4 {[%clk 0:03:03.9]} 7... Nxe4 {[%clk 0:03:07.7]} 8. Bxe4 {[%clk 0:03:05.8]}
8... Qxd1+ {[%clk 0:03:09.3]} 9. Kxd1 {[%clk 0:03:07.5]} 9... Bxc5 {[%clk
0:03:11.2]} 10. Ke2 {[%clk 0:03:09]} 10... Nd7 {[%clk 0:03:12.5]} 11. Be3 {[%clk
0:03:09.9]} 11... Bxe3 {[%clk 0:03:13.9]} 12. Kxe3 {[%clk 0:03:11.8]} 12... Nc5
{[%clk 0:03:15.7]} 13. Rad1 {[%clk 0:03:08.8]} 13... Ke7 {[%clk 0:03:16.9]} 14.
Ne5 {[%clk 0:02:54.2]} 14... f6 {[%clk 0:03:09.7]} 15. Nc4 {[%clk 0:02:54.5]}
15... Nxe4 {[%clk 0:03:10.5]} 16. Kxe4 {[%clk 0:02:56.4]} 16... Bd7 {[%clk
0:03:09.6]} 17. f3 {[%clk 0:02:54.3]} 17... Rac8 {[%clk 0:03:04.5]} 18. Na3
{[%clk 0:02:54.5]} 18... b5 {[%clk 0:02:49.9]} 19. c3 {[%clk 0:02:55.1]} 19...
a5 {[%clk 0:02:51.2]} 20. Rd2 {[%clk 0:02:50]} 20... b4 {[%clk 0:02:39.3]} 21.
cxb4 {[%clk 0:02:51.9]} 21... axb4 {[%clk 0:02:41.2]} 22. Nc2 {[%clk 0:02:52.4]}
22... e5 {[%clk 0:02:31.4]} 23. Ke3 {[%clk 0:02:49.1]} 23... Rb8 {[%clk
0:02:27.4]} 24. Rhd1 {[%clk 0:02:45.9]} 24... Be6 {[%clk 0:02:27.4]} 25. a3
{[%clk 0:02:46.9]} 25... bxa3 {[%clk 0:02:27.5]} 26. bxa3 {[%clk 0:02:38.1]}
26... Rhc8 {[%clk 0:02:27.7]} 27. Nb4 {[%clk 0:02:36.9]} 27... Ra8 {[%clk
0:02:28.7]} 28. Rd3 {[%clk 0:02:34.7]} 28... Ra5 {[%clk 0:02:14]} 29. Kf2 {[%clk
0:02:21.9]} 29... Rac5 {[%clk 0:02:06.2]} 30. R1d2 {[%clk 0:02:14.9]} 30... g5
{[%clk 0:02:01.2]} 31. Rd6 {[%clk 0:02:07.6]} 31... Rc1 {[%clk 0:01:35.2]} 32.
Rb6 {[%clk 0:01:59.5]} 32... Bg8 {[%clk 0:00:31.6]} 33. Rdd6 {[%clk 0:01:35.4]}
33... Rf8 {[%clk 0:00:32.7]} 34. g4 {[%clk 0:01:14.2]} 34... Ra1 {[%clk
0:00:30.3]} 35. Ra6 {[%clk 0:01:12.3]} 35... Bc4 {[%clk 0:00:28.6]} 36. Rac6
{[%clk 0:01:07.5]} 36... Rxa3 {[%clk 0:00:24.2]} 37. Rd2 {[%clk 0:01:02.8]}
37... Be6 {[%clk 0:00:10.2]} 38. Rc7+ {[%clk 0:01:02.9]} 38... Ke8 {[%clk
0:00:11.7]} 39. Nc6 {[%clk 0:00:59.8]} 39... Bd7 {[%clk 0:00:05.7]} 40. Rdxd7
{[%clk 0:00:58.4]} 40... Ra2+ {[%clk 0:00:06.4]} 41. Kg3 {[%clk 0:00:58.8]}
41... h5 {[%clk 0:00:05.7]} 42. Re7# {[%clk 0:00:58.9]} 1-0

[Event "*** Titled Tuesday Blitz"]
[Site "Chess.com"]
[Date "2019.05.07"]
[Round "2"]
[White "RojonR"]
[Black "Maikrosoft63"]
[Result "0-1"]
[WhiteElo "2402"]
[BlackElo "2565"]
[TimeControl "180+2"]
[EndTime "13:23:47 PDT"]
[Termination "Maikrosoft63 won by resignation"]

1. e4 {[%clk 0:03:01.9]} 1... c5 {[%clk 0:03:00.9]} 2. Nf3 {[%clk 0:03:01.3]}
2... Nc6 {[%clk 0:03:01.2]} 3. d4 {[%clk 0:03:01.5]} 3... cxd4 {[%clk
0:03:03.1]} 4. Nxd4 {[%clk 0:03:02.8]} 4... Nf6 {[%clk 0:03:04.4]} 5. Nc3 {[%clk
0:03:03.2]} 5... d6 {[%clk 0:03:05.7]} 6. Be2 {[%clk 0:02:56]} 6... e5 {[%clk
0:03:06.2]} 7. Nb3 {[%clk 0:02:56.3]} 7... Be7 {[%clk 0:03:06.7]} 8. O-O {[%clk
0:02:55.3]} 8... O-O {[%clk 0:03:07.4]} 9. Be3 {[%clk 0:02:53.7]} 9... a5 {[%clk
0:03:08.3]} 10. a4 {[%clk 0:02:53.5]} 10... Nb4 {[%clk 0:03:09]} 11. Bf3 {[%clk
0:02:48]} 11... Be6 {[%clk 0:03:04.8]} 12. Nd5 {[%clk 0:02:26.5]} 12... Nfxd5
{[%clk 0:03:04.1]} 13. exd5 {[%clk 0:02:28.4]} 13... Bf5 {[%clk 0:03:05]} 14. c3
{[%clk 0:02:23.8]} 14... Nc2 {[%clk 0:03:03.3]} 15. Rc1 {[%clk 0:02:22.4]} 15...
Nxe3 {[%clk 0:03:03.9]} 16. fxe3 {[%clk 0:02:24.3]} 16... Qd7 {[%clk 0:03:01.7]}
17. e4 {[%clk 0:02:15.8]} 17... Bg6 {[%clk 0:03:02.4]} 18. Nd2 {[%clk 0:02:16]}
18... Bg5 {[%clk 0:03:02.9]} 19. Ra1 {[%clk 0:02:08.3]} 19... Qc7 {[%clk
0:02:54.6]} 20. Be2 {[%clk 0:02:00.7]} 20... Qb6+ {[%clk 0:02:52.6]} 21. Kh1
{[%clk 0:02:00.5]} 21... Qxb2 {[%clk 0:02:50.4]} 22. Nc4 {[%clk 0:02:00.8]}
22... Qxc3 {[%clk 0:02:45.5]} 23. Nxd6 {[%clk 0:02:01.7]} 23... Rad8 {[%clk
0:02:34.6]} 24. Nb5 {[%clk 0:01:56.6]} 24... Qe3 {[%clk 0:02:29.7]} 25. Bf3
{[%clk 0:01:27.5]} 25... Bxe4 {[%clk 0:02:28.3]} 26. Bxe4 {[%clk 0:01:19.5]}
26... Qxe4 {[%clk 0:02:30.2]} 27. d6 {[%clk 0:01:20.5]} 27... Qc6 {[%clk
0:02:23.4]} 28. Qb3 {[%clk 0:01:18.1]} 28... Rd7 {[%clk 0:02:19.2]} 29. Rad1
{[%clk 0:01:17.1]} 29... g6 {[%clk 0:02:17.3]} 30. Rd5 {[%clk 0:00:57.9]} 30...
Bf4 {[%clk 0:02:02.6]} 31. Qf3 {[%clk 0:00:55.1]} 31... f5 {[%clk 0:01:58.1]}
32. g3 {[%clk 0:00:48.4]} 32... Bh6 {[%clk 0:01:36.3]} 33. Rxe5 {[%clk
0:00:49.1]} 33... Qxf3+ {[%clk 0:01:36]} 34. Rxf3 {[%clk 0:00:51]} 34... Kf7
{[%clk 0:01:34.6]} 35. Rc5 {[%clk 0:00:38.1]} 35... Rfd8 {[%clk 0:01:30.5]} 36.
Rfc3 {[%clk 0:00:35.1]} 36... Bg7 {[%clk 0:01:27.5]} 37. R3c4 {[%clk 0:00:35.9]}
37... Ke6 {[%clk 0:01:25.1]} 38. Rc2 {[%clk 0:00:33.7]} 38... Bf8 {[%clk
0:01:21]} 39. Re2+ {[%clk 0:00:30.3]} 39... Kf6 {[%clk 0:01:22.3]} 40. Rce5
{[%clk 0:00:25.5]} 40... Bxd6 {[%clk 0:01:20.4]} 41. Re6+ {[%clk 0:00:26.2]}
41... Kg5 {[%clk 0:01:21.8]} 42. h4+ {[%clk 0:00:20.7]} 42... Kg4 {[%clk
0:01:15.8]} 43. Kg2 {[%clk 0:00:21.5]} 43... Bxg3 {[%clk 0:01:13]} 44. R6e3
{[%clk 0:00:15.1]} 44... f4 {[%clk 0:01:13.9]} 45. Re5 {[%clk 0:00:15.5]} 45...
f3+ {[%clk 0:01:12.7]} 0-1

[Event "*** Titled Tuesday Blitz"]
[Site "Chess.com"]
[Date "2019.05.07"]
[Round "2"]
[White "checkmatequen"]
[Black "Denis_Palkovich"]
[Result "1-0"]
[WhiteElo "2188"]
[BlackElo "2264"]
[TimeControl "180+2"]
[EndTime "13:23:48 PDT"]
[Termination "checkmatequen won by resignation"]

1. e4 {[%clk 0:02:59.7]} 1... c6 {[%clk 0:03:00.3]} 2. d4 {[%clk 0:02:59.6]}
2... d5 {[%clk 0:03:00.8]} 3. Nc3 {[%clk 0:03:00.1]} 3... dxe4 {[%clk
0:03:01.9]} 4. Nxe4 {[%clk 0:03:01.6]} 4... Nf6 {[%clk 0:03:03.1]} 5. Nxf6+
{[%clk 0:03:01.3]} 5... exf6 {[%clk 0:03:04.1]} 6. c3 {[%clk 0:03:03.2]} 6...
Bf5 {[%clk 0:03:04.3]} 7. Nf3 {[%clk 0:03:02.2]} 7... Bd6 {[%clk 0:03:04.5]} 8.
Bd3 {[%clk 0:03:01.1]} 8... Bxd3 {[%clk 0:03:04.6]} 9. Qxd3 {[%clk 0:03:03]}
9... O-O {[%clk 0:03:06.1]} 10. O-O {[%clk 0:03:03.2]} 10... Nd7 {[%clk
0:03:07.6]} 11. c4 {[%clk 0:02:57.9]} 11... Re8 {[%clk 0:03:02.3]} 12. Bd2
{[%clk 0:02:56.3]} 12... Nc5 {[%clk 0:02:58.1]} 13. Qc2 {[%clk 0:02:49.5]} 13...
Ne4 {[%clk 0:02:56.8]} 14. Rfe1 {[%clk 0:02:49.5]} 14... f5 {[%clk 0:02:48.3]}
15. Bc3 {[%clk 0:02:31.2]} 15... Qf6 {[%clk 0:02:40.8]} 16. Rad1 {[%clk
0:02:28.8]} 16... Qh6 {[%clk 0:02:34.9]} 17. g3 {[%clk 0:02:25.6]} 17... Nxc3
{[%clk 0:02:30.3]} 18. bxc3 {[%clk 0:02:23.4]} 18... f4 {[%clk 0:02:27.7]} 19.
c5 {[%clk 0:02:19.7]} 19... Bc7 {[%clk 0:02:07]} 20. Qf5 {[%clk 0:02:13.7]}
20... fxg3 {[%clk 0:02:01.2]} 21. hxg3 {[%clk 0:02:07.9]} 21... Re6 {[%clk
0:01:14.4]} 22. Rxe6 {[%clk 0:02:02.1]} 22... fxe6 {[%clk 0:01:07.5]} 23. Qg4
{[%clk 0:02:00.5]} 23... Rf8 {[%clk 0:01:06.3]} 24. Re1 {[%clk 0:01:53.7]} 24...
Rf5 {[%clk 0:00:37.2]} 25. Nh4 {[%clk 0:01:38.7]} 25... Rf6 {[%clk 0:00:27.9]}
26. c4 {[%clk 0:01:30.9]} 26... Kf7 {[%clk 0:00:13.8]} 27. d5 {[%clk 0:01:28.1]}
27... cxd5 {[%clk 0:00:13.7]} 28. cxd5 {[%clk 0:01:30]} 28... g5 {[%clk
0:00:08.8]} 29. dxe6+ {[%clk 0:01:24.2]} 29... Rxe6 {[%clk 0:00:08.2]} 30. Rxe6
{[%clk 0:01:19.3]} 30... Qxe6 {[%clk 0:00:08.6]} 31. Qxg5 {[%clk 0:01:19]} 31...
Qe1+ {[%clk 0:00:05.8]} 32. Kg2 {[%clk 0:01:19]} 32... Qe4+ {[%clk 0:00:07.1]}
33. Kh2 {[%clk 0:01:17.6]} 33... Qc2 {[%clk 0:00:07.2]} 34. Qd5+ {[%clk
0:01:13.5]} 34... Ke7 {[%clk 0:00:07.9]} 35. Kg2 {[%clk 0:01:07.6]} 35... b6
{[%clk 0:00:04.4]} 36. c6 {[%clk 0:01:07.3]} 36... Qc5 {[%clk 0:00:04.6]} 37.
Qd7+ {[%clk 0:01:07.5]} 37... Kf6 {[%clk 0:00:04.9]} 38. Qxc7 {[%clk 0:01:05.3]}
38... Qd5+ {[%clk 0:00:06.1]} 39. Kh2 {[%clk 0:01:06]} 39... Qd2 {[%clk
0:00:05.6]} 40. Qf4+ {[%clk 0:01:06.1]} 40... Qxf4 {[%clk 0:00:06.1]} 41. gxf4
{[%clk 0:01:08]} 41... Ke6 {[%clk 0:00:07.6]} 42. f5+ {[%clk 0:01:07.6]} 42...
Kd6 {[%clk 0:00:08.5]} 43. f6 {[%clk 0:01:08.6]} 1-0

[Event "*** Titled Tuesday Blitz"]
[Site "Chess.com"]
[Date "2019.05.07"]
[Round "2"]
[White "Shant_Sargsyan"]
[Black "GMsKoRPioN"]
[Result "1-0"]
[WhiteElo "2957"]
[BlackElo "2592"]
[TimeControl "180+2"]
[EndTime "13:23:50 PDT"]
[Termination "Shant_Sargsyan won by resignation"]

1. d4 {[%clk 0:03:01.9]} 1... g6 {[%clk 0:02:58.8]} 2. e4 {[%clk 0:03:03.2]}
2... d6 {[%clk 0:02:59.4]} 3. Nc3 {[%clk 0:03:04]} 3... Bg7 {[%clk 0:03:00.6]}
4. Be3 {[%clk 0:03:04.7]} 4... a6 {[%clk 0:03:01.9]} 5. Qd2 {[%clk 0:03:04.5]}
5... b5 {[%clk 0:03:02.6]} 6. a3 {[%clk 0:03:05.6]} 6... Bb7 {[%clk 0:03:03.8]}
7. f3 {[%clk 0:03:06.8]} 7... Nd7 {[%clk 0:03:05.1]} 8. h4 {[%clk 0:03:07.7]}
8... Ngf6 {[%clk 0:03:06.2]} 9. Nh3 {[%clk 0:03:07.5]} 9... Rc8 {[%clk
0:03:06.9]} 10. Nf4 {[%clk 0:03:07.9]} 10... c5 {[%clk 0:03:04.8]} 11. dxc5
{[%clk 0:03:09]} 11... Nxc5 {[%clk 0:03:05.1]} 12. h5 {[%clk 0:03:10.6]} 12...
Rg8 {[%clk 0:03:05.7]} 13. hxg6 {[%clk 0:03:11.6]} 13... hxg6 {[%clk 0:03:07.6]}
14. O-O-O {[%clk 0:03:10.6]} 14... Qc7 {[%clk 0:02:56.4]} 15. Kb1 {[%clk
0:03:09.7]} 15... Nfd7 {[%clk 0:02:31.3]} 16. Ncd5 {[%clk 0:03:09.3]} 16... Bxd5
{[%clk 0:02:29.2]} 17. Nxd5 {[%clk 0:03:11.2]} 17... Qc6 {[%clk 0:02:27.4]} 18.
Bg5 {[%clk 0:03:03.7]} 18... f6 {[%clk 0:02:18.7]} 19. Be3 {[%clk 0:03:04.4]}
19... Na4 {[%clk 0:02:18.1]} 20. Nb4 {[%clk 0:02:57.8]} 20... Qb7 {[%clk
0:02:12]} 21. Qd5 {[%clk 0:02:54.5]} 21... Qxd5 {[%clk 0:02:12.7]} 22. exd5
{[%clk 0:02:56.4]} 22... f5 {[%clk 0:02:09.9]} 23. Bc1 {[%clk 0:02:56.2]} 23...
Nac5 {[%clk 0:01:59.8]} 24. g4 {[%clk 0:02:49.6]} 24... fxg4 {[%clk 0:01:53.2]}
25. fxg4 {[%clk 0:02:50.7]} 25... Ne5 {[%clk 0:01:52.1]} 26. Nxa6 {[%clk
0:02:49.7]} 26... Nc4 {[%clk 0:01:20.4]} 27. Nxc5 {[%clk 0:02:41.1]} 27... Rxc5
{[%clk 0:01:20.8]} 28. Bd3 {[%clk 0:02:42.5]} 28... Ne5 {[%clk 0:01:20.2]} 29.
Be2 {[%clk 0:02:40.5]} 29... Rf8 {[%clk 0:01:16.3]} 30. b4 {[%clk 0:02:40.3]}
30... Rc8 {[%clk 0:01:13]} 31. Bxb5+ {[%clk 0:02:40.6]} 31... Kd8 {[%clk
0:01:14.5]} 32. Rhf1 {[%clk 0:02:40.3]} 32... Nxg4 {[%clk 0:01:11.6]} 33. Rxf8+
{[%clk 0:02:40.8]} 33... Bxf8 {[%clk 0:01:13.4]} 34. Rg1 {[%clk 0:02:38.8]}
34... Ne5 {[%clk 0:01:11]} 35. Bb2 {[%clk 0:02:39.6]} 35... Bg7 {[%clk
0:01:07.5]} 36. c4 {[%clk 0:02:32.3]} 36... Bf6 {[%clk 0:01:05.5]} 37. Bxe5
{[%clk 0:02:32.8]} 37... Bxe5 {[%clk 0:01:04.6]} 38. Rxg6 {[%clk 0:02:34.4]}
38... Kc7 {[%clk 0:01:05.8]} 39. Re6 {[%clk 0:02:34.4]} 39... Bf6 {[%clk
0:00:52.4]} 40. c5 {[%clk 0:02:35.4]} 40... Rf8 {[%clk 0:00:53.9]} 41. Kc2
{[%clk 0:02:33.8]} 41... Rf7 {[%clk 0:00:53.1]} 42. Bd3 {[%clk 0:02:31.3]} 42...
Be5 {[%clk 0:00:51.7]} 43. Kb3 {[%clk 0:02:29.9]} 43... Rf3 {[%clk 0:00:48.8]}
44. Kc4 {[%clk 0:02:28.2]} 44... Rf4+ {[%clk 0:00:50]} 45. Kb5 {[%clk 0:02:29]}
45... Rd4 {[%clk 0:00:48.7]} 46. Bf5 {[%clk 0:02:25.9]} 46... Kd8 {[%clk
0:00:46.3]} 47. Kc6 {[%clk 0:02:22]} 47... Rf4 {[%clk 0:00:46.7]} 48. Rg6 {[%clk
0:02:20.3]} 48... Ke8 {[%clk 0:00:32.4]} 49. Be6 {[%clk 0:02:21.3]} 49... Rf8
{[%clk 0:00:33.4]} 50. a4 {[%clk 0:02:18.9]} 50... Rh8 {[%clk 0:00:31.8]} 51.
cxd6 {[%clk 0:02:17.8]} 51... exd6 {[%clk 0:00:29.6]} 52. Rg8+ {[%clk
0:02:18.4]} 52... Rxg8 {[%clk 0:00:30.3]} 53. Bxg8 {[%clk 0:02:20.3]} 53... Kd8
{[%clk 0:00:30.4]} 54. Be6 {[%clk 0:02:21.2]} 54... Bc3 {[%clk 0:00:31.3]} 55.
b5 {[%clk 0:02:22.6]} 55... Ba5 {[%clk 0:00:31.4]} 56. Kxd6 {[%clk 0:02:23.8]}
56... Bc7+ {[%clk 0:00:26.8]} 57. Kc6 {[%clk 0:02:25.4]} 57... Bb8 {[%clk
0:00:28.2]} 58. b6 {[%clk 0:02:26.2]} 58... Ke7 {[%clk 0:00:29.3]} 59. a5 {[%clk
0:02:28.1]} 59... Kd8 {[%clk 0:00:30.5]} 60. a6 {[%clk 0:02:29.5]} 60... Ke7
{[%clk 0:00:30.9]} 61. a7 {[%clk 0:02:31.4]} 61... Bxa7 {[%clk 0:00:31]} 62.
bxa7 {[%clk 0:02:32.7]} 1-0